[Event "Sardinia World Festival-A 2024"]
[Site "Orosei"]
[Date "2024.04.29"]
[Round "3.9"]
[White "Erdogmus, Yagiz Kaan"]
[Black "Yankelevich, Lev"]
[Result "1/2-1/2"]
[ECO "D00"]
[WhiteElo "2540"]
[BlackElo "2413"]
[Annotator "TA"]
[PlyCount "69"]
[EventDate "2024.04.26"]
[EventType "swiss"]
[EventCountry "ITA"]
[SourceTitle "playchess.com"]
[Source "ChessBase"]
[SourceQuality "1"]
[TimeControl "40/5400+30:1800+30"]

{[%evp 9,69,5,6,3,9,9,24,12,18,-2,25,31,32,27,38,43,35,42,52,44,40,26,46,41,66,37,39,28,31,29,99,87,150,49,52,0,0,0,0,0,0,0,0,-38,-17,-36,-36,-42,0,-21,0,-23,0,-72,-75,-110,-91,-155,-155,-229,-162,-250]} 1. d4 {[%emt 0:00:03]} Nf6 {[%emt 0:08:25]} 2. Bg5 {[%emt 0:00:06]} d5 {[%emt 0:01:20]} 3. Nd2 {[%emt 0:00:13]} c6 {[%emt 0:05:59]} 4. e3 {[%emt 0:12:36]} Bf5 {[%emt 0:00:36]} 5. Bxf6 {[%emt 0:04:42]} exf6 {[%emt 0:04:19]} 6. c4 {[%emt 0:16:14]} Qb6 {[%emt 0:00:12]} 7. Qc1 {[%emt 0:04:39]} a5 {[%emt 0:07:37]} 8. Ne2 {[%emt 0:02:41] White has an edge.} Nd7 {[%emt 0:08:27]} 9. Nc3 {[%emt 0:16:42]} Rc8 {[%emt 0:05:41]} 10. Be2 {[%emt 0:04:40]} dxc4 {[%emt 0:02:10]} 11. O-O {[%emt 0:02:13][%cal Oe3e4]} Bd3 {[%emt 0:21:12]} 12. Nxc4 {[%emt 0:00:29]} Bxc4 {[%emt 0:00:05]} 13. Bxc4 {[%emt 0:00:06]} Bd6 {[%emt 0:00:17]} 14. Qc2 {[%emt 0:09:51]} O-O {[%emt 0:01:47]} 15. Rad1 {[%emt 0:02:32]} Rfd8 {[%emt 0:01:06] Black is weak on the light squares} 16. g3 {[%emt 0:06:44]} g6 {[%emt 0:00:22]} 17. e4 {[%emt 0:01:06] White is more active.} Kg7 {[%emt 0:00:09]} 18. Kg2 {[%emt 0:00:25]} Qa7 {[%emt 0:04:42]} 19. a4 {[%emt 0:01:33]} Nf8 {[%emt 0:06:32]} (19... Bb4 $11) 20. f4 $16 {[%emt 0:00:53]} Bc7 {[%emt 0:05:13] [#]} (20... Be7 $142) 21. e5 {[%emt 0:08:05]} (21. Qf2 $1 $16) 21... f5 $1 $14 {[%emt 0:00:15]} 22. Qb3 {[%emt 0:01:56]} ({White should try} 22. Qf2 $14) 22... Rxd4 $11 {[%emt 0:02:53]} 23. Bxf7 {[%emt 0:01:18] Bg8 would now be deadly.} Rb4 {[%emt 0:00:44]} 24. Qa2 {[%emt 0:00:07]} Qb6 {[%emt 0:00:12]} 25. Rf2 {[%emt 0:00:27] Strongly threatening Bg8.} Rd4 {[%emt 0:07:02]} 26. Re1 {[%emt 0:01:40]} Qb4 {[%emt 0:01:43]} 27. Bg8 {[%emt 0:00:56]} Qe7 {[%emt 0:00:14] Inhibits Qf7+.} 28. Bc4 {[%emt 0:00:35]} Qb4 {[%emt 0:01:42]} 29. Bg8 {[%emt 0:00:41]} Qe7 {[%emt 0:00:02] Prevents Qf7+} 30. Bc4 $1 {[%emt 0:00:11]} Qb4 {[%emt 0:00:02]} 31. Bf1 {[%emt 0:00:17]} (31. Bg8 $11 {keeps the balance.} Qe7) 31... Re8 $36 {[%emt 0:01:22][%mdl 2048] Black is on the roll.} 32. Rc1 {[%emt 0:00:40][%cal Oc3b5]} Ne6 {[%emt 0:00:42]} 33. b3 {[%emt 0:00:56] [#]} (33. Qa3 $142) 33... Bb6 $1 {[%emt 0:00:11][%cal Re6f4] ...Nxf4+! is the strong threat.} 34. Qb2 {[%emt 0:00:31]} (34. Kh1 $17) 34... Red8 {[%emt 0:00:38][%cal Re6f4] And now ...Nxf4+! would win.} 35. Na2 {[%emt 0:00:32] Weighted Error Value: White=0.20 (precise) /Black=0.14 (very precise) .  Mistake:       	White=6     	Black=2      Inaccurate:     	White=3     	Black=1      OK:         	White=10    	Black=8      Best:        	White=1     	Black=1      Strong:       	White=1     	Black=2} (35. Rfc2 $142) 1/2-1/2

[Event "Sardinia World Festival-A 2024"]
[Site "Orosei"]
[Date "2024.04.29"]
[Round "3.10"]
[White "Kaczmarek, Aleksander"]
[Black "Parkhov, Yair"]
[Result "0-1"]
[ECO "C02"]
[WhiteElo "2362"]
[BlackElo "2513"]
[Annotator "TA"]
[PlyCount "75"]
[EventDate "2024.04.26"]
[EventType "swiss"]
[EventCountry "ITA"]
[SourceTitle "playchess.com"]
[Source "ChessBase"]
[SourceQuality "1"]
[TimeControl "40/5400+30:1800+30"]

{[%evp 10,75,0,-18,0,-40,-58,-46,-13,-65,-38,-44,-44,-52,-41,-47,-45,-50,-52,-72,-5,-64,-61,-61,-76,-130,-72,-97,-34,-79,-41,-111,-109,-181,-187,-181,-178,-179,-153,-173,-187,-183,-191,-193,-208,-207,-193,-198,-189,-289,-193,-187,-163,-172,-178,-220,-176,-286,-277,-351,-358,-436,-468,-468,-460,-745,-334,-2114]} 1. e4 {[%emt 0:01:52]} e6 {[%emt 0:00:27]} 2. d4 {[%emt 0:00:04]} d5 {[%emt 0:00:27]} 3. e5 {[%emt 0:00:05]} c5 {[%emt 0:00:04]} 4. c3 {[%emt 0:00:04]} Nc6 {[%emt 0:00:04]} 5. Nf3 {[%emt 0:00:07]} Bd7 {[%emt 0:00:05]} 6. Bd3 {[%emt 0:00:13]} cxd4 {[%emt 0:00:20]} 7. O-O {[%emt 0:00:43]} dxc3 {[%emt 0:00:17]} 8. Nxc3 {[%emt 0:00:06]} a6 {[%emt 0:00:23] Black is slightly better.} 9. Bf4 {[%emt 0:04:02]} (9. Re1 $11) 9... Bc5 {[%emt 0:02:03]} 10. Rc1 {[%emt 0:01:20][%cal Oc3d5]} Nge7 {[%emt 0:10:48]} 11. Na4 {[%emt 0:06:45]} Ba7 {[%emt 0:01:36]} 12. Nc5 {[%emt 0:00:22]} Bxc5 {[%emt 0:04:28]} 13. Rxc5 {[%emt 0:00:06]} Ng6 {[%emt 0:07:46]} 14. Bg3 {[%emt 0:09:47]} O-O {[%emt 0:01:37]} (14... Qb6 $17 15. Rc1 Qxb2) 15. Qb1 {[%emt 0:19:32]} (15. Rc3 $11) 15... Nb4 {[%emt 0:18:11] Strongly threatening ...Nxd3.} 16. Bxg6 {[%emt 0:01:31]} fxg6 {[%emt 0:01:22]} 17. Bh4 {[%emt 0:05:35] [#]} (17. a3 $142 Nc6 18. Qd3) 17... Qe8 {[%emt 0:02:58]} (17... Qb6 $142 $1 {[%cal Rb6c5]} 18. Rfc1 Bb5) 18. Rc7 $17 {[%emt 0:03:57]} Nc6 {[%emt 0:02:54]} ({Better is} 18... Bb5 $17 19. Rfc1 Rf7) 19. Qd3 {[%emt 0:05:19]} Rf7 {[%emt 0:13:13] White must now prevent ...Qb8.} 20. Qa3 {[%emt 0:07:28] [#] Black converts the advantage convincingly.} (20. Rxb7 $2 Na5 21. Rb6 Bb5 $19) ({White should play} 20. Qe3 $1 $15) 20... h6 $1 {[%emt 0:09:10]} 21. Rxb7 {[%emt 0:04:39]} (21. Bg3 $17 {keeps fighting.}) 21... g5 {[%emt 0:00:10]} 22. Bg3 {[%emt 0:00:09]} g4 {[%emt 0:00:33]} 23. Nd2 {[%emt 0:01:22]} Nd4 {[%emt 0:03:10]} 24. Kh1 {[%emt 0:07:27]} Qc8 {[%emt 0:01:07]} 25. Qb4 {[%emt 0:01:54][%cal Ob7b6]} Nb5 {[%emt 0:06:48]} 26. Rb6 {[%emt 0:05:21][%cal Oa2a4]} Qc7 {[%emt 0:00:54]} 27. Qa5 {[%emt 0:00:54]} Nd4 {[%emt 0:01:10]} 28. Nb3 {[%emt 0:03:23]} Bb5 $36 {[%emt 0:00:47][%mdl 2048] Black is in control.} 29. Re1 {[%emt 0:03:06]} ({Avoid the trap} 29. Nxd4 $2 Bxf1 30. Kg1 (30. Nxe6 $2 {loses.} Qc1 $19) 30... Kh7 $19) (29. Ra1 $142 Nc6 30. Rxc6 Bxc6 (30... Qxc6 $2 31. Nd4 $19) 31. Qxc7 Rxc7 32. Nd4) 29... Nc6 {[%emt 0:01:10]} 30. Rxc6 {[%emt 0:00:20]} Qxc6 {[%emt 0:01:37]} 31. Rc1 {[%emt 0:00:50]} Qe8 {[%emt 0:00:46]} 32. Qc3 {[%emt 0:04:26]} Qe7 {[%emt 0:00:36]} 33. Qd4 {[%emt 0:01:19]} (33. Nd4 $142) 33... Qg5 {[%emt 0:01:24]} 34. Rc3 {[%emt 0:02:10]} h5 {[%emt 0:02:11] ...h4 is the strong threat.} 35. h4 {[%emt 0:01:08]} gxh3 {[%emt 0:00:18]} 36. gxh3 {[%emt 0:00:16]} Raf8 {[%emt 0:00:48]} 37. Nd2 {[%emt 0:00:43]} (37. h4 $142 Qf5 38. Nd2) 37... Be2 {[%emt 0:02:17]} (37... h4 $142 38. Bxh4 Qh6) 38. Re3 $2 {[%emt 0:00:00] Weighted Error Value: White=0.46/Black=0.33.  Mistake:       	White=9     	Black=4      Inaccurate:     	White=2     	Black=4      OK:         	White=8     	Black=14     Best:        	---       	Black=1      Strong:       	---       	Black=1} (38. Qe3 Qxe3 39. Rxe3) 0-1

[Event "Sardinia World Festival-A 2024"]
[Site "Orosei"]
[Date "2024.04.29"]
[Round "3.11"]
[White "Mikhalevski, Victor"]
[Black "Chyzy, Jakub"]
[Result "1-0"]
[ECO "E01"]
[WhiteElo "2506"]
[BlackElo "2314"]
[Annotator "TA"]
[PlyCount "109"]
[EventDate "2024.04.26"]
[EventType "swiss"]
[EventCountry "ITA"]
[SourceTitle "playchess.com"]
[Source "ChessBase"]
[SourceQuality "1"]
[TimeControl "40/5400+30:1800+30"]

{[%evp 37,109,48,45,45,76,35,43,55,49,57,50,53,51,44,73,49,91,40,37,40,40,11,42,0,0,0,0,0,0,-8,-8,-8,0,0,30,0,0,0,0,0,0,0,18,8,8,0,0,0,8,8,8,0,0,0,0,0,0,0,0,0,0,0,0,0,0,-8,-8,-8,-8,-8,-8,-8,-8,-8]} 1. Nf3 {[%emt 0:00:33]} Nf6 {[%emt 0:02:13]} 2. c4 {[%emt 0:00:07]} e6 {[%emt 0:06:29]} 3. g3 {[%emt 0:00:15]} c5 {[%emt 0:03:34]} 4. Bg2 {[%emt 0:00:16]} d5 {[%emt 0:01:01]} 5. d4 {[%emt 0:01:13]} cxd4 {[%emt 0:01:40]} 6. O-O {[%emt 0:00:15]} Bc5 {[%emt 0:06:47]} 7. Nxd4 {[%emt 0:03:22]} Nc6 {[%emt 0:02:35]} 8. Nxc6 {[%emt 0:00:25]} bxc6 {[%emt 0:00:02]} 9. Qc2 {[%emt 0:00:16]} Be7 {[%emt 0:01:22]} 10. Nc3 {[%emt 0:02:02] E01: Catalan: Early deviations.} O-O {[%emt 0:00:18]} 11. Rd1 {[%emt 0:00:48]} Ba6 {[%emt 0:07:08] 11...Qa5 is the modern continuation.} 12. b3 {[%emt 0:12:52]} Qa5 {[%emt 0:05:17]} 13. Bd2 {[%emt 0:11:36]} Qa3 $146 {[%emt 0:02:05]} ({Predecessor:} 13... Qc7 14. Na4 Rac8 15. Rac1 Ba3 16. Rb1 Bd6 17. Bg5 Nd7 18. e4 dxc4 19. Qd2 c3 20. Qxc3 {1-0 Quispe Arteaga,G (2197)-Yingrui,L (2031) Madrid Chamartin op 6th 2017 (3)}) 14. Na4 {[%emt 0:01:59]} Rab8 {[%emt 0:06:58]} 15. Bf4 {[%emt 0:06:08]} Bd6 {[%emt 0:07:38]} 16. Bc1 {[%emt 0:03:40]} Qb4 {[%emt 0:00:07]} 17. Be3 {[%emt 0:00:13]} Qb7 {[%emt 0:14:54]} 18. Nc5 {[%emt 0:00:59]} Qc8 {[%emt 0:00:25]} 19. Bh3 {[%emt 0:05:06]} Re8 {[%emt 0:05:58]} 20. Rac1 {[%emt 0:02:54]} Bf8 {[%emt 0:03:55]} 21. Bd4 {[%emt 0:14:53]} dxc4 {[%emt 0:06:32]} 22. bxc4 {[%emt 0:19:54]} Rb4 {[%emt 0:00:11]} 23. Nxa6 {[%emt 0:00:39]} Qxa6 {[%emt 0:00:07]} 24. Bxf6 {[%emt 0:00:19]} gxf6 {[%emt 0:00:06]} 25. Rd7 {[%emt 0:00:10]} Qa3 {[%emt 0:10:23]} 26. Rb1 {[%emt 0:05:01]} Reb8 {[%emt 0:01:10] [#]} 27. Rxb4 {[%emt 0:00:55]} (27. Rbd1 $1 $16 {[%cal Oh3e6] Bxe6! would now be deadly.} Qb2 28. Qd3) 27... Qxb4 $14 {[%emt 0:00:07]} 28. Kg2 {[%emt 0:00:44]} (28. Rxa7 $2 Qe1+ (28... Bc5 $2 29. Kg2 $19) 29. Bf1 Bc5 $19) 28... f5 {[%emt 0:01:02]} 29. g4 {[%emt 0:03:17]} Qb2 {[%emt 0:03:53]} 30. Qd3 {[%emt 0:01:03]} (30. Qxb2 {simplifies} Rxb2 31. gxf5 exf5 32. Kf3) 30... f4 $1 {[%emt 0:00:59]} 31. Qe4 {[%emt 0:01:21]} (31. Rxa7 {seems wilder.} Qe5 32. Kf3 Bc5 33. Ra6) 31... Qf6 {[%emt 0:00:31]} 32. Rxa7 {[%emt 0:00:45]} (32. Qxc6 Rb2 33. Kf3 (33. Rxa7 $2 Rxe2 34. Qf3 Rc2 $19) 33... Rxa2 $19) 32... Rb2 {[%emt 0:00:27]} 33. Ra5 {[%emt 0:00:37]} (33. Qxc6 $2 Rxe2 34. Qf3 Rc2 $19) 33... h6 {[%emt 0:00:22]} 34. g5 {[%emt 0:01:45]} (34. Qxc6 $2 Rxe2 35. g5 Qa1 $19 (35... hxg5 36. Bg4 $17)) 34... hxg5 {[%emt 0:00:08]} 35. Bg4 {[%emt 0:00:04]} (35. Ra8 {with more complications.} Kg7 36. Ra7 Bc5 37. Rd7) 35... Qd8 {[%emt 0:01:36]} 36. Bxe6 {[%emt 0:01:10]} fxe6 {[%emt 0:00:00]} (36... Qxa5 $2 37. Qg6+ Bg7 38. Qxf7+ Kh7 39. Bf5+ $18) 37. Qxe6+ {[%emt 0:00:06]} (37. Ra7 $5 Bg7 $8 (37... f3+ 38. Qxf3 Be7 39. Qxc6 $16) 38. Qxe6+ Kh8 39. Re7 $11) 37... Kh8 $1 {[%emt 0:00:08]} 38. Ra7 {[%emt 0:01:11]} f3+ {[%emt 0:00:33]} ({But not} 38... Qd6 $2 39. Qf7 f3+ (39... Rxe2 40. Qh7#) 40. exf3 $18) 39. Kxf3 {[%emt 0:00:33]} Bg7 {[%emt 0:00:45]} 40. Re7 {[%emt 0:00:30]} Rb8 {[%emt 0:00:29]} 41. Qh3+ {[%emt 0:04:03]} Kg8 {[%emt 0:01:37]} 42. Qe6+ {[%emt 0:00:48]} Kh8 {[%emt 0:00:45]} 43. Kg2 {[%emt 0:02:16]} Qd4 {[%emt 0:12:02]} 44. e3 {[%emt 0:10:08]} (44. Qxc6 $2 {gets mated.} Qg4+ 45. Kh1 Rb1#) 44... Qh4 {[%emt 0:05:12]} 45. Re8+ {[%emt 0:09:34]} (45. Rxg7 $5 Rf8 $8 46. Rf7 Rxf7 47. Qxf7 Qg4+ 48. Kf1 Qd1+ 49. Kg2 Qg4+ 50. Kh1 Qd1+ 51. Kg2 Qg4+ $11) 45... Rxe8 {[%emt 0:00:12]} 46. Qxe8+ {[%emt 0:00:01]} Kh7 {[%emt 0:00:08]} 47. Qe6 {[%emt 0:00:04]} (47. Qxc6 $5 Qg4+ $8 48. Kf1 $11) 47... Qh6 {[%emt 0:12:25]} 48. Qxh6+ {[%emt 0:02:15]} Kxh6 {[%emt 0:00:05]} 49. a4 {[%emt 0:00:03]} Bc3 {[%emt 0:00:05]} 50. Kf3 {[%emt 0:00:11]} Kg6 {[%emt 0:00:14]} 51. Kg4 {[%emt 0:00:44]} Bd2 {[%emt 0:02:40]} 52. f4 {[%emt 0:02:01]} Bxe3 {[%emt 0:00:17]} 53. fxg5 {[%emt 0:00:04]} Bxg5 {[%emt 0:00:02]} 54. a5 {[%emt 0:05:22]} Be3 $1 55. a6 {[%emt 0:00:30]} (55. Kf3 $5 Bg1 $8 56. h4 $11) 1-0

[Event "Sardinia World Festival-A 2024"]
[Site "Orosei"]
[Date "2024.04.29"]
[Round "3.12"]
[White "Fedoseev, Vladimir"]
[Black "Favaloro, Andrea"]
[Result "1-0"]
[ECO "D36"]
[WhiteElo "2690"]
[BlackElo "2412"]
[Annotator "TA"]
[PlyCount "65"]
[EventDate "2024.04.26"]
[EventType "swiss"]
[EventCountry "ITA"]
[SourceTitle "playchess.com"]
[Source "ChessBase"]
[SourceQuality "1"]
[TimeControl "40/5400+30:1800+30"]

{[%evp 21,65,14,17,13,19,0,0,0,0,0,0,-9,-10,-16,0,-11,22,0,24,26,47,45,46,50,44,58,42,49,72,70,55,47,39,18,14,23,31,19,26,19,60,58,175,150,692,692]} 1. d4 {[%emt 0:00:55]} d5 {[%emt 0:00:19]} 2. c4 {[%emt 0:00:08]} e6 {[%emt 0:00:12]} 3. Nc3 {[%emt 0:00:11]} Nf6 {[%emt 0:00:12]} 4. cxd5 {[%emt 0:00:27]} exd5 {[%emt 0:00:17]} 5. Bg5 {[%emt 0:00:16]} Be7 {[%emt 0:00:27]} 6. e3 {[%emt 0:02:02]} O-O {[%emt 0:00:45]} 7. Bd3 {[%emt 0:00:02]} Re8 {[%emt 0:00:40]} 8. Nge2 {[%emt 0:04:52][%cal Bg1e2,Be2c1,Bc1d3][%mdl 32]} Nbd7 {[%emt 0:01:21][%cal Bb8d7,Bd7f8,Bf8e6][%mdl 32]} 9. O-O {[%emt 0:01:44]} Nf8 {[%emt 0:00:59]} 10. a3 {[%emt 0:04:10]} a5 {[%emt 0:03:42]} 11. Qc2 {[%emt 0:07:59]} c6 {[%emt 0:00:45]} 12. Rae1 {[%emt 0:05:00]} g6 {[%emt 0:02:44]} 13. Nc1 {[%emt 0:06:08]} (13. Nf4 {is interesting.} Kg7 14. Bh4 Bd6 15. Qb3) 13... Ne6 {[%emt 0:02:00]} 14. Bh4 {[%emt 0:03:04] The position is equal.} Bd7 {[%emt 0:07:32]} 15. a4 {[%emt 0:01:29]} Nh5 {[%emt 0:16:51]} 16. Bxe7 {[%emt 0:00:10]} Qxe7 {[%emt 0:00:05]} 17. Be2 {[%emt 0:00:10]} Nf6 {[%emt 0:01:38]} 18. Nd3 {[%emt 0:00:06]} Rec8 {[%emt 0:11:25]} 19. Qb3 {[%emt 0:00:18]} c5 {[%emt 0:07:48] [#] Strongly threatening ...c4.} 20. dxc5 {[%emt 0:08:03]} Nxc5 {[%emt 0:00:28]} 21. Nxc5 {[%emt 0:00:10]} Qxc5 {[%emt 0:00:11]} 22. Rd1 $1 {[%emt 0:00:26][%cal Be1d1,Bd1d4,Bd4d5,Bd5d6][%mdl 32]} (22. Qxb7 $2 Rcb8 $19) 22... Qb4 {[%emt 0:06:53]} 23. Qa2 {[%emt 0:00:51]} Be6 {[%emt 0:00:49][%cal Od5d4] [#] White must now prevent ...d4!} 24. Rd4 {[%emt 0:00:11]} Qb6 {[%emt 0:00:16]} 25. Rfd1 {[%emt 0:00:45]} Rc5 {[%emt 0:07:35][%cal Of6e4]} 26. h3 {[%emt 0:06:33]} Ne4 {[%emt 0:10:35]} 27. Nxd5 {[%emt 0:16:11]} Bxd5 {[%emt 0:17:31]} 28. Rxd5 {[%emt 0:00:06] White wants to play Rd7.} Rc2 {[%emt 0:00:00][%csl LRb2,LRe2] Threatens to win with ...Nc3.} 29. Qb1 {[%emt 0:00:16]} (29. Rd7 $5 Rf8 (29... Qf6 30. Bf3 $14) 30. Qb1 (30. Qd5 Rxe2 31. Qxe4 Rxb2 $14) 30... Qxb2 31. Qxb2 (31. Rxb7 $2 {loses.} Qxb1 32. Rdxb1 Rxe2 $19) 31... Rxb2 32. Bc4 $17) 29... Rxe2 {[%emt 0:00:00]} 30. Qxe4 {[%emt 0:00:08]} Rxb2 {[%emt 0:00:00]} 31. Rd6 {[%emt 0:05:30]} Qc5 {[%emt 0:00:00]} ({Black should try} 31... Qb4 $1 $14 32. R6d4 Qb6) 32. Qe7 {[%emt 0:04:27] Threatening mate with Rd8+.} b6 $2 {[%emt 0:00:00]} (32... Rc2 $16 33. Qxb7 Rf8) 33. Qf6 {[%emt 0:00:28] Weighted Error Value: White=0.07 (flawless) /Black=0.48.  Loses game:     	---       	Black=1      Mistake:       	---       	Black=1      Inaccurate:     	---       	Black=2      OK:         	White=8     	Black=7      Best:        	---       	Black=1      Strong:       	White=1     	---} 1-0

[Event "Sardinia World Festival-A 2024"]
[Site "Orosei"]
[Date "2024.04.29"]
[Round "3.13"]
[White "Shohat, Yotam"]
[Black "Lagarde, Maxime"]
[Result "0-1"]
[ECO "B67"]
[WhiteElo "2398"]
[BlackElo "2640"]
[Annotator "TA"]
[PlyCount "104"]
[EventDate "2024.04.26"]
[EventType "swiss"]
[EventCountry "ITA"]
[SourceTitle "playchess.com"]
[Source "ChessBase"]
[SourceQuality "1"]
[TimeControl "40/5400+30:1800+30"]

{[%evp 28,104,71,30,42,37,36,39,40,14,14,0,0,9,0,0,56,-16,-6,-40,-18,-102,0,0,18,16,60,59,67,0,0,0,17,0,60,0,0,0,0,0,0,-159,-14,-68,-68,-68,-60,-117,-139,-183,-192,-256,-253,-226,-268,-268,-240,-179,-179,-424,-437,-461,-450,-431,-306,-374,-300,-502,-502,-847,-814,-29972,-7138,-29985,-29986,-29986,-29987,-29987,-29988]} 1. e4 {[%emt 0:00:03]} c5 {[%emt 0:00:17]} 2. Nf3 {[%emt 0:00:03]} d6 {[%emt 0:00:03]} 3. d4 {[%emt 0:00:05]} cxd4 {[%emt 0:00:03]} 4. Nxd4 {[%emt 0:00:08]} Nf6 {[%emt 0:00:06]} 5. Nc3 {[%emt 0:00:04]} Nc6 {[%emt 0:00:03]} 6. Bg5 {[%emt 0:03:06]} e6 {[%emt 0:00:05]} 7. Qd2 {[%emt 0:00:08]} Be7 {[%emt 0:00:07]} 8. O-O-O {[%emt 0:01:39]} a6 {[%emt 0:00:10]} 9. Kb1 {[%emt 0:01:07]} Bd7 {[%emt 0:01:57]} 10. Nxc6 {[%emt 0:00:19]} Bxc6 {[%emt 0:01:39]} 11. f3 {[%emt 0:00:08]} b5 {[%emt 0:06:16]} 12. h4 {[%emt 0:03:19] B67: Sicilian: Richter-Rauzer: 7...a6 8 0-0-0 Bd7, lines without 9 f4 Be7.} Qc7 {[%emt 0:01:16]} 13. Ne2 {[%emt 0:02:32]} Rb8 $5 {[%emt 0:00:37][%mdl 4] Leaves trodden paths.} 14. Nd4 {[%emt 0:00:08]} Bd7 {[%emt 0:00:29]} 15. Bd3 {[%emt 0:00:44]} b4 $146 {[%emt 0:11:03]} ({Predecessor:} 15... h5 16. Rhe1 a5 17. Bf1 b4 18. f4 a4 19. e5 dxe5 20. fxe5 Nd5 21. Bxe7 Nxe7 {1-0 Baskin,R (2390)-Nazaretyan,T (2316) Titled Tuesday intern op 31st Aug blitz 2021 (11)}) 16. Rc1 {[%emt 0:15:44]} h6 {[%emt 0:07:21]} 17. Be3 {[%emt 0:00:12]} e5 {[%emt 0:01:33]} 18. Nb3 {[%emt 0:20:41]} d5 $1 {[%emt 0:09:14]} 19. c3 {[%emt 0:03:00]} (19. Bxa6 $2 Ra8 20. Be2 d4 21. Nxd4 exd4 22. Qxd4 Be6 23. Bb5+ Nd7 $19) 19... bxc3 {[%emt 0:02:19]} 20. Rxc3 {[%emt 0:00:18]} Qd8 $1 {[%emt 0:00:07]} 21. Ba7 {[%emt 0:09:46]} (21. Bxa6 d4 (21... dxe4 22. Rcc1 $17) 22. Nxd4 exd4 23. Qxd4 O-O $17) 21... Bb4 {[%emt 0:11:11] [#]} (21... Ra8 $11 22. Bc5 dxe4 23. fxe4 O-O) 22. Bc5 {[%emt 0:03:02]} (22. Bxb8 $1 $14 Qxb8 23. Nc5 Bxc3 24. Nxd7 (24. Qxc3 dxe4 25. Nxd7 Nxd7 $16) 24... Nxd7 25. Qxc3 dxe4 26. fxe4 (26. Bxe4 O-O $16)) 22... Bxc3 $11 {[%emt 0:03:43]} 23. Qxc3 {[%emt 0:00:03]} d4 {[%emt 0:00:09]} 24. Qe1 {[%emt 0:04:43]} (24. Qd2 $11 {keeps the balance.}) 24... Qc7 {[%emt 0:06:01]} (24... Nh5 $1 $17 25. Bxa6 Nf4) 25. Ba3 $11 {[%emt 0:01:28]} Be6 {[%emt 0:07:16]} 26. Nc5 {[%emt 0:07:14]} O-O {[%emt 0:08:13]} 27. Nxa6 {[%emt 0:04:54]} (27. Nxe6 fxe6 28. Bxf8 Kxf8 $11) 27... Qb6 {[%emt 0:00:23]} 28. Nxb8 {[%emt 0:02:12]} (28. Qb4 $14 Qa7 (28... Qxb4 29. Bxb4 Rxb4 30. Nxb4 $18) 29. Qc5) 28... Rxb8 $11 {[%emt 0:00:03]} 29. Qd2 {[%emt 0:01:17]} Ra8 {[%emt 0:04:05]} 30. Ka1 {[%emt 0:02:35]} Nd7 {[%emt 0:00:38]} (30... Nh5 $11) 31. Qc2 {[%emt 0:03:57]} (31. Rc1 $14) 31... Qa5 $11 {[%emt 0:01:25]} 32. Rd1 {[%emt 0:05:06]} Nb6 $1 {[%emt 0:00:37]} 33. Qd2 {[%emt 0:00:19]} Qa7 {[%emt 0:03:24]} 34. Bb5 $2 {[%emt 0:04:07] [#]} ({White should play} 34. Qb4 $11) 34... Na4 {[%emt 0:06:23]} (34... Bc4 $1 $17 {[%cal Rc4b5]} 35. Bxc4 Nxc4) 35. Bxa4 {[%emt 0:00:37]} ({Better is} 35. Qb4 $11) 35... Qxa4 $15 {[%emt 0:00:02]} 36. Rc1 {[%emt 0:00:31]} Qa6 {[%emt 0:02:35]} 37. g3 {[%emt 0:01:01]} (37. Qe1 $15) 37... f6 $17 {[%emt 0:01:43]} 38. f4 {[%emt 0:02:24] [#]} Bf7 $1 {[%emt 0:00:25]} 39. f5 {[%emt 0:00:23]} (39. Qb4 {keeps fighting.}) 39... h5 $19 {[%emt 0:02:17]} 40. Qc2 {[%emt 0:00:30]} d3 {[%emt 0:01:22]} 41. Qd2 {[%emt 0:12:33]} Rd8 {[%emt 0:00:20]} 42. Kb1 {[%emt 0:07:00]} Rd4 {[%emt 0:09:18]} 43. g4 $2 {[%emt 0:01:48]} (43. Re1) 43... hxg4 $19 {[%emt 0:03:08]} ({Less strong is} 43... Rxe4 44. g5 Bc4 (44... Rxh4 $2 45. gxf6 Qxf6 46. Qxd3 $19) (44... Re2 45. Qb4 $17) 45. Rf1 $19) 44. h5 {[%emt 0:00:05]} Rxe4 {[%emt 0:05:48]} 45. h6 {[%emt 0:00:10]} Rc4 {[%emt 0:01:29]} 46. Re1 {[%emt 0:10:19]} Qc8 {[%emt 0:05:04]} 47. hxg7 $2 {[%emt 0:01:42]} (47. b3 {might work better.} Rf4 48. h7+ Kxh7 49. Rh1+ Kg8 50. Qxd3) 47... Qxf5 $19 {[%emt 0:00:15]} 48. Rh1 {[%emt 0:00:10]} (48. b3 $142 Rf4 49. Bc5) 48... Rf4 $19 {[%emt 0:01:46]} ({And not} 48... Kxg7 49. Qh6+ Kg8 50. Qh8#) 49. Qg2 {[%emt 0:01:02]} Kxg7 {[%emt 0:01:07]} 50. b3 {[%emt 0:00:32]} d2+ {[%emt 0:00:32]} 51. Ka1 {[%emt 0:00:11]} Rf2 {[%emt 0:00:36]} 52. Qg1 {[%emt 0:00:44]} Bd5 {[%emt 0:00:48]} 0-1